bitfinex-derivatives/quotes_BTCF0:USTF0_20251011
["timestamp","ask_amount","ask_price","bid_price","bid_amount"]
[1760158423536,0.0886383,112660.0,112650.0,0.0232]
[1760158423735,0.49807849,112660.0,112650.0,0.0232]
[1760158423936,0.40944019,112660.0,112650.0,0.1337262]
[1760158424138,0.49807849,112660.0,112650.0,0.04508]
[1760158425537,0.49807849,112660.0,112650.0,0.0232]
[1760158426536,0.40944019,112660.0,112650.0,0.1337262]
[1760158426938,0.49807849,112660.0,112650.0,0.04508]
[1760158427634,0.40944019,112660.0,112650.0,0.1337262]
[1760158427840,0.40944019,112660.0,112650.0,0.8945262]
[1760158428035,0.4494186,112690.0,112680.0,0.01395]
[1760158428250,0.4494186,112690.0,112680.0,0.1342826]
[1760158428251,0.85885489,112690.0,112680.0,0.1342826]
[1760158428541,0.40944019,112690.0,112680.0,0.4950826]
[1760158429240,0.0886104,112700.0,112690.0,0.01395]
[1760158429442,0.49805059,112700.0,112690.0,0.09395]
[1760158430938,0.49905059,112700.0,112690.0,0.09395]
[1760158432145,0.41044019,112700.0,112690.0,0.09395]
[1760158432544,0.49904709,112700.0,112690.0,0.09395]
[1760158432744,0.49904709,112700.0,112690.0,0.2042747]
[1760158433043,0.49904709,112700.0,112690.0,0.11566]
[1760158433240,0.85884709,112700.0,112690.0,0.09395]
[1760158433441,0.85884709,112700.0,112690.0,0.09497175]
[1760158433637,0.0886069,112700.0,112690.0,0.09497175]
[1760158433840,1.25884709,112700.0,112690.0,0.09507162]
[1760158434045,1.66828728,112700.0,112690.0,0.09507162]
[1760158434344,1.66828728,112700.0,112690.0,0.09395]
[1760158434644,1.66828728,112700.0,112690.0,0.0951613]
[1760158435247,0.8494069,112700.0,112690.0,0.0951613]
[1760158435442,0.49804709,112700.0,112690.0,0.0951613]
[1760158435846,0.85884709,112700.0,112690.0,0.0951613]
[1760158436039,1.66828728,112700.0,112690.0,0.0951613]
[1760158436238,1.66928728,112700.0,112690.0,0.0951613]
[1760158436542,0.0886147,112690.0,112680.0,0.01395]
[1760158436740,1.25885489,112690.0,112680.0,0.0465036]
[1760158436942,1.25885489,112690.0,112680.0,0.0245236]
[1760158437141,0.0886226,112680.0,112670.0,0.01395]
[1760158437345,0.49806279,112680.0,112670.0,0.03395]
[1760158437646,0.85886279,112680.0,112670.0,0.03395]
[1760158437846,0.49806279,112680.0,112670.0,0.03395]
[1760158438149,0.85886279,112680.0,112670.0,0.03395]
[1760158438646,1.25886279,112680.0,112670.0,0.03395]
[1760158439438,1.25986279,112680.0,112670.0,0.03395]
[1760158440250,0.85986279,112680.0,112670.0,0.03395]
[1760158440446,0.49906279,112680.0,112670.0,0.05768096]
[1760158440641,0.001,112680.0,112670.0,0.92886136]
[1760158440949,0.41044019,112680.0,112670.0,0.92885192]
[1760158441250,0.41044019,112680.0,112670.0,0.93670752]
[1760158441547,0.0896226,112680.0,112670.0,0.42632712]
[1760158441747,0.0896226,112680.0,112670.0,0.41846936]
[1760158441748,0.49906279,112680.0,112670.0,0.41846936]
[1760158442049,0.85986279,112680.0,112670.0,0.05766936]
[1760158442354,1.25986279,112680.0,112670.0,0.01395]
[1760158442542,0.89906279,112680.0,112670.0,0.01395]
[1760158442844,1.25986279,112680.0,112670.0,0.01395]
[1760158443046,0.0886304,112670.0,112660.0,0.03766936]
[1760158443251,0.85887059,112670.0,112660.0,0.03766936]
[1760158443446,1.25887059,112670.0,112660.0,0.03766936]
[1760158443951,1.40607059,112670.0,112660.0,0.03766936]
[1760158444152,0.0886383,112660.0,112650.0,0.04459712]
[1760158444346,0.85887849,112660.0,112650.0,0.08302]
[1760158444543,0.49807849,112660.0,112650.0,0.11459712]
[1760158445650,0.0886383,112660.0,112650.0,0.11459712]
[1760158445846,0.49807849,112660.0,112650.0,0.11459712]
[1760158446051,0.40944019,112660.0,112650.0,0.98579332]
[1760158446254,0.4494358,112670.0,112660.0,0.01302]
[1760158446452,0.85887599,112670.0,112660.0,0.13302]
[1760158446647,0.49807599,112670.0,112660.0,0.2216583]
[1760158446848,0.40944019,112670.0,112660.0,0.6042083]
[1760158447153,0.40944019,112670.0,112660.0,1.03578542]
[1760158447552,0.40944019,112670.0,112660.0,0.63578542]
[1760158448055,0.49807059,112670.0,112660.0,0.52539712]
[1760158448354,0.49807059,112670.0,112660.0,0.16459712]
[1760158448652,0.49807059,112670.0,112660.0,0.52539712]
[1760158448845,0.49807059,112670.0,112660.0,0.63578542]
[1760158449155,0.49807059,112670.0,112660.0,0.54714712]
[1760158449350,0.49807059,112670.0,112660.0,0.63578542]
[1760158449750,0.40944019,112670.0,112660.0,0.63578542]
[1760158449945,0.40944019,112670.0,112660.0,1.03578542]
[1760158450155,0.0886184,112690.0,112680.0,0.01302]
[1760158450357,0.449414,112700.0,112690.0,0.01302]
[1760158450648,0.85885419,112700.0,112690.0,0.09302]
[1760158450846,0.89037672,112700.0,112690.0,0.09302]
[1760158452555,0.53057672,112700.0,112690.0,0.09302]
[1760158453055,0.94001691,112700.0,112690.0,0.09302]
[1760158453351,0.12113653,112700.0,112690.0,0.09302]
[1760158453555,0.94001691,112700.0,112690.0,0.09302]
[1760158454055,1.30081691,112700.0,112690.0,0.09302]
[1760158456351,1.70081691,112700.0,112690.0,0.09302]
[1760158456556,1.66929438,112700.0,112690.0,0.09302]
[1760158456858,1.71681016,112700.0,112690.0,0.01302]
[1760158457457,0.0886147,112690.0,112680.0,0.01302]
[1760158457756,0.89073732,112690.0,112680.0,0.03302]
[1760158458552,0.89173732,112690.0,112680.0,0.03302]
[1760158460961,0.85985489,112690.0,112680.0,0.03302]
[1760158462457,0.0886226,112680.0,112670.0,0.01302]
[1760158462662,0.85886279,112680.0,112670.0,0.08302]
[1760158463559,0.49806279,112680.0,112670.0,0.08302]
[1760158464568,0.49806279,112680.0,112670.0,0.01302]
[1760158464569,0.49906279,112680.0,112670.0,0.01302]
[1760158464760,0.0896226,112680.0,112670.0,0.01302]
[1760158464959,0.49906279,112680.0,112670.0,0.01302]
[1760158465963,0.49806279,112680.0,112670.0,0.01302]
[1760158466562,0.49806279,112680.0,112670.0,0.4842904]
[1760158466762,0.49806279,112680.0,112670.0,0.8842904]
[1760158466962,0.40944019,112680.0,112670.0,1.04688821]
[1760158468266,0.40944019,112680.0,112670.0,1.04695809]
[1760158468669,0.40944019,112680.0,112670.0,1.04702797]
[1760158469168,0.49806279,112680.0,112670.0,0.64709806]
[1760158469567,0.4371115,112680.0,112670.0,0.64586752]
[1760158469769,0.4371115,112680.0,112670.0,0.64716815]
[1760158470161,0.4371115,112680.0,112670.0,0.64721328]
[1760158470669,0.3484889,112680.0,112670.0,0.64721328]
[1760158471175,0.12048623,112710.0,112700.0,0.01306]
[1760158471470,0.46897513,112710.0,112700.0,0.0349]
[1760158471666,0.03188243,112710.0,112700.0,0.5235068]
[1760158471867,0.3484889,112710.0,112700.0,0.9343068]
[1760158472062,0.3484889,112710.0,112700.0,0.93565256]
[1760158472974,0.4370879,112710.0,112700.0,0.93565256]
[1760158473172,0.4370879,112710.0,112700.0,0.84704576]
[1760158473474,0.4380879,112710.0,112700.0,0.44704576]
[1760158473875,0.4380879,112710.0,112700.0,0.53565256]
[1760158474377,0.4370879,112710.0,112700.0,0.06440576]
[1760158474674,0.3484889,112710.0,112700.0,0.93565256]
[1760158474871,0.4370879,112710.0,112700.0,0.93565256]
[1760158475179,0.4370879,112710.0,112700.0,0.84704576]
[1760158475474,0.4370879,112710.0,112700.0,0.44704576]
[1760158475975,0.4370879,112710.0,112700.0,0.06440576]
[1760158476172,1.22977033,112710.0,112700.0,0.01451235]
[1760158476678,1.22977033,112710.0,112700.0,0.01461894]
[1760158477079,1.1978879,112710.0,112700.0,0.01472553]
[1760158477572,1.24970386,112710.0,112700.0,0.01483212]
[1760158477969,1.21782143,112710.0,112700.0,0.01493838]
[1760158478378,1.21882143,112710.0,112700.0,0.01493838]
[1760158478577,1.21882143,112710.0,112700.0,0.01499113]
[1760158478782,1.25070386,112710.0,112700.0,0.01499113]
[1760158478981,1.25070386,112710.0,112700.0,0.01504388]
[1760158480081,0.85070386,112710.0,112700.0,0.01504388]
[1760158480284,0.85070386,112710.0,112700.0,0.01509663]
[1760158480475,0.81882143,112710.0,112700.0,0.01509663]
[1760158480679,0.81882143,112710.0,112700.0,0.01514938]
[1760158480984,1.25070386,112710.0,112700.0,0.01514938]
[1760158481480,1.24970386,112710.0,112700.0,0.01514938]
[1760158481781,1.24970386,112710.0,112700.0,0.01520213]
[1760158481980,0.81782143,112710.0,112700.0,0.01520213]
[1760158482173,0.81782143,112710.0,112700.0,0.01525488]
[1760158482780,0.81782143,112710.0,112700.0,0.01527993]
[1760158483178,0.81882143,112710.0,112700.0,0.01533268]
[1760158483786,0.81882143,112710.0,112700.0,0.01538543]
[1760158483985,0.81782143,112710.0,112700.0,0.01538543]
[1760158484285,0.81782143,112710.0,112700.0,0.01543818]
[1760158484983,1.21782143,112710.0,112700.0,0.01553806]
[1760158485384,1.21782143,112710.0,112700.0,0.01561662]
[1760158485385,0.81782143,112710.0,112700.0,0.01561662]
[1760158486081,0.72922243,112710.0,112700.0,0.43745662]
[1760158486288,0.45702143,112710.0,112700.0,0.92825662]
[1760158486481,0.45802143,112710.0,112700.0,0.92825662]
[1760158487388,0.36842243,112710.0,112700.0,1.01686342]
[1760158488286,0.36842243,112710.0,112700.0,0.92825662]
[1760158488478,0.36842243,112710.0,112700.0,1.01686342]
[1760158488677,0.45702143,112710.0,112700.0,1.01686342]
[1760158488878,0.36842243,112710.0,112700.0,1.01686342]
[1760158490781,0.01993353,112710.0,112700.0,1.01686342]
[1760158491192,0.46895033,112740.0,112730.0,0.01269]
[1760158491378,0.48894866,112740.0,112730.0,0.14269]
[1760158491585,0.48894866,112740.0,112730.0,0.52815783]
[1760158491784,0.05188076,112740.0,112730.0,0.61674113]
[1760158491982,0.48894506,112740.0,112730.0,0.61674113]
[1760158492490,0.14045616,112740.0,112730.0,0.61674113]
[1760158492689,0.01999833,112740.0,112730.0,1.01681825]
[1760158493089,0.01999833,112740.0,112730.0,1.01689537]
[1760158494288,0.06352513,112790.0,112780.0,0.123244]
[1760158494494,0.06352513,112800.0,112790.0,0.01269]
[1760158494790,0.86133983,112810.0,112790.0,0.39349]
[1760158494992,0.86133983,112810.0,112800.0,0.01550207]
[1760158495188,0.06352513,112810.0,112800.0,0.39630207]
[1760158495388,0.3484889,112810.0,112800.0,0.39630207]
[1760158495589,0.14317749,112830.0,112820.0,0.1232126]
[1760158495892,0.4492898,112850.0,112840.0,0.01269]
[1760158496093,0.3484889,112850.0,112840.0,0.01550207]
[1760158496386,0.01296,112840.0,112830.0,0.02201]
[1760158496582,0.01296,112840.0,112830.0,0.5940047]
[1760158496583,0.3614489,112840.0,112830.0,0.5940047]
[1760158496785,0.3614489,112840.0,112830.0,0.9940047]
[1760158496983,0.3614489,112840.0,112830.0,0.9160147]
[1760158497184,0.01101,112880.0,112830.0,0.9160147]
[1760158497185,0.45313909,112880.0,112850.0,0.0347]
[1760158497384,0.11482909,112880.0,112870.0,0.3608]
[1760158497589,0.11482909,112880.0,112850.0,0.05]
[1760158497590,0.02249,112860.0,112850.0,0.3712991]
[1760158497793,0.02249,112860.0,112850.0,0.5112991]
[1760158498196,0.11482909,112870.0,112860.0,0.0884812]
[1760158498496,0.02249,112850.0,112840.0,0.4713053]
[1760158498699,0.02249,112850.0,112840.0,0.51281]
[1760158498886,0.02249,112850.0,112840.0,0.6013069]
[1760158499491,0.02249,112850.0,112840.0,0.91281]
[1760158499693,0.02249,112850.0,112840.0,1.0013069]
[1760158499893,0.3856889,112860.0,112850.0,0.02201]
[1760158500091,0.3836889,112860.0,112840.0,0.4492945]
[1760158500394,0.3836889,112860.0,112840.0,0.5792945]
[1760158500795,0.02249,112860.0,112850.0,0.4712991]
[1760158500991,0.02249,112860.0,112850.0,0.6012991]
[1760158501595,0.0352,112860.0,112850.0,0.2404991]
[1760158501897,0.0372,112860.0,112850.0,0.6012991]
[1760158502693,0.0372,112860.0,112850.0,1.0012991]
[1760158502895,0.02449,112860.0,112850.0,1.0012991]
[1760158503088,0.0372,112860.0,112850.0,1.0012991]
[1760158503294,0.02449,112860.0,112850.0,1.0012991]
[1760158503495,0.07962909,112880.0,112870.0,0.1231734]
[1760158503696,0.07962909,112880.0,112870.0,0.9747734]
[1760158503894,0.10211909,112890.0,112880.0,0.1104755]
[1760158504095,0.02249,112890.0,112880.0,0.5912755]
[1760158504293,0.02249,112890.0,112880.0,0.9912755]
[1760158504490,0.10211909,112890.0,112880.0,0.9912755]
[1760158504796,0.02249,112890.0,112880.0,0.9912755]
[1760158504996,0.46331799,112900.0,112890.0,0.0884577]
[1760158505296,0.46331799,112900.0,112890.0,0.6039577]
[1760158505297,0.02249,112900.0,112890.0,0.6039577]
[1760158506100,0.11482909,112910.0,112900.0,0.1104599]
[1760158506299,0.11482909,112910.0,112900.0,0.5812599]
[1760158506494,0.11482909,112920.0,112910.0,0.110452]
[1760158506695,0.10211909,112920.0,112910.0,0.611252]
[1760158506894,0.02249,112920.0,112910.0,1.011252]
[1760158507104,0.10211909,112920.0,112910.0,1.011252]
[1760158507797,0.11482909,112920.0,112910.0,0.52281]
[1760158508201,0.11482909,112920.0,112910.0,0.611252]
[1760158508402,0.11482909,112920.0,112910.0,0.52281]
[1760158508706,0.11482909,112920.0,112910.0,0.3608]
[1760158509001,0.01271,112900.0,112890.0,0.3608]
[1760158509195,0.1236499,112900.0,112890.0,0.4808]
[1760158509400,0.02249,112880.0,112870.0,0.4712799]
[1760158509597,0.16414288,112880.0,112870.0,0.11]
[1760158509799,0.01271,112880.0,112870.0,0.11]
[1760158509998,0.01271,112880.0,112870.0,0.3608]
[1760158510200,0.01271,112870.0,112860.0,0.4492782]
[1760158510397,0.01271,112870.0,112860.0,0.5892782]
[1760158510602,0.3611989,112870.0,112860.0,0.14]
[1760158510795,0.3611989,112870.0,112850.0,0.4492844]
[1760158510796,0.01171,112860.0,112850.0,0.4492844]
[1760158510994,0.01171,112860.0,112850.0,0.5792844]
[1760158511198,0.01271,112870.0,112860.0,0.0884812]
[1760158511800,0.01271,112860.0,112850.0,0.4492855]
[1760158512000,0.01271,112860.0,112850.0,0.5692855]
[1760158512405,0.01271,112870.0,112860.0,0.0884812]
[1760158512706,0.0352,112880.0,112870.0,0.1104834]
[1760158512901,0.02249,112880.0,112870.0,0.4712834]
[1760158513212,0.02249,112880.0,112870.0,0.8912834]
[1760158513398,0.02249,112880.0,112870.0,0.5304834]
[1760158513399,0.0352,112880.0,112870.0,0.5304834]
[1760158513601,0.0352,112880.0,112870.0,0.0884734]
[1760158513902,0.0352,112880.0,112870.0,0.5012834]
[1760158514097,0.02249,112880.0,112870.0,0.5012834]
[1760158514302,0.3709789,112890.0,112880.0,0.1104756]
[1760158514506,0.02249,112900.0,112890.0,0.1104677]
[1760158514802,0.02249,112900.0,112890.0,0.2404677]
[1760158516406,0.7219989,112910.0,112890.0,0.2404677]
[1760158516600,0.3484889,112920.0,112900.0,0.4839499]
[1760158516804,0.3836889,112930.0,112920.0,0.1104442]
[1760158516998,0.3836889,112930.0,112920.0,0.5312442]
[1760158517204,0.3836889,112930.0,112920.0,0.5092342]
[1760158517406,0.3836889,112930.0,112920.0,0.4492342]
[1760158517907,0.0352,112930.0,112920.0,0.4492342]
[1760158518107,0.3846889,112930.0,112920.0,0.5192342]
[1760158518307,0.3846889,112930.0,112920.0,0.4916742]
[1760158519612,0.3846889,112930.0,112920.0,0.4692342]
[1760158520313,0.3846889,112930.0,112920.0,0.3808]
[1760158520513,0.3846889,112930.0,112920.0,0.1084342]
[1760158520708,0.0362,112930.0,112920.0,0.4916742]
[1760158520914,0.3846889,112930.0,112920.0,0.4916742]
[1760158521211,0.7846889,112930.0,112920.0,0.02]
[1760158521411,0.7846889,112930.0,112920.0,0.1084342]
[1760158521607,0.8731153,112930.0,112920.0,0.02]
[1760158522508,0.3846889,112930.0,112920.0,0.02]
[1760158522712,0.4731153,112930.0,112920.0,0.02]
[1760158523310,0.3846889,112930.0,112920.0,0.1084342]
[1760158523504,0.3846889,112930.0,112920.0,0.02]
[1760158523709,0.4731153,112930.0,112920.0,0.02]
[1760158524013,0.03375,112960.0,112950.0,0.1108507]
[1760158524207,0.02104,112960.0,112950.0,0.50324]
[1760158524412,0.3826789,112960.0,112950.0,0.12]
[1760158524613,0.3826789,112960.0,112950.0,0.2084107]
[1760158525106,0.3846789,112960.0,112950.0,0.2084107]
[1760158525312,0.3846789,112960.0,112950.0,0.12]
[1760158525515,0.7846789,112960.0,112950.0,0.12]
[1760158525715,0.3846789,112960.0,112950.0,0.2308507]
[1760158525916,0.02304,112960.0,112950.0,0.2308507]
[1760158526118,0.02304,112960.0,112950.0,0.5916507]
[1760158526819,0.02104,112960.0,112950.0,0.5916507]
[1760158527218,0.3826789,112970.0,112960.0,0.1108429]
[1760158527415,0.471074,112970.0,112960.0,0.5816429]
[1760158527715,0.3826789,112970.0,112960.0,0.5592029]
[1760158528611,0.471074,112970.0,112960.0,0.4708]
[1760158528807,0.871074,112970.0,112960.0,0.11]
[1760158529617,1.231874,112970.0,112960.0,0.11]
[1760158529814,0.3826789,112970.0,112960.0,0.11]
[1760158530013,0.3826789,112970.0,112960.0,0.5592029]
[1760158530221,0.471074,112970.0,112960.0,0.11]
[1760158530718,0.3826789,112970.0,112960.0,0.2208429]
[1760158531216,0.3826789,112970.0,112960.0,0.5816429]
[1760158531217,0.3836789,112970.0,112960.0,0.5816429]
[1760158531411,0.44237542,112970.0,112960.0,0.5816429]
[1760158531814,0.53077052,112970.0,112960.0,0.13244]
[1760158532117,0.53077052,112970.0,112960.0,0.49324]
[1760158532317,0.44237542,112970.0,112960.0,0.5816429]
[1760158532820,0.53077052,112970.0,112960.0,0.4708]
[1760158533122,0.53077052,112970.0,112960.0,0.11]
[1760158533317,1.29157052,112970.0,112960.0,0.11]
[1760158534617,0.44237542,112970.0,112960.0,0.2208429]
[1760158534816,0.42922542,112970.0,112960.0,0.5816429]
[1760158535013,0.42922542,112970.0,112960.0,0.2208429]
[1760158535218,0.89157052,112970.0,112960.0,0.11]
[1760158535424,1.29157052,112970.0,112960.0,0.11]
[1760158537216,0.1094586,112940.0,112930.0,0.17]
[1760158537414,0.89059402,112940.0,112930.0,0.07]
[1760158537617,1.29059402,112940.0,112930.0,0.07]
[1760158538420,0.1172242,112920.0,112910.0,0.02346262]
[1760158538619,0.88520962,112920.0,112910.0,0.15346262]
[1760158539127,0.88520962,112920.0,112910.0,0.18500954]
[1760158539313,0.88520962,112920.0,112910.0,0.16154692]
[1760158539519,1.28520962,112920.0,112910.0,0.15347202]
[1760158539719,1.64600962,112920.0,112910.0,0.15453922]
[1760158540116,1.64600962,112920.0,112910.0,0.15447202]
[1760158540424,1.64600962,112920.0,112910.0,0.15561756]
[1760158540619,1.64600962,112920.0,112910.0,0.15568121]
[1760158540819,1.64600962,112920.0,112910.0,0.15468121]
[1760158541121,0.79677542,112920.0,112910.0,0.15468121]
[1760158541417,0.51665962,112920.0,112910.0,0.16275611]
[1760158541624,0.88520962,112920.0,112910.0,0.16275611]
[1760158541825,0.79677542,112920.0,112910.0,0.16275611]
[1760158542025,0.42822542,112920.0,112910.0,0.64835811]
[1760158542228,0.42822542,112920.0,112910.0,0.66419074]
[1760158542418,0.43597542,112920.0,112910.0,0.26703074]
[1760158542620,0.42822542,112920.0,112910.0,0.66419074]
[1760158542817,0.40718542,112920.0,112910.0,0.66419074]
[1760158543224,0.42822542,112920.0,112910.0,0.17858874]
[1760158543422,1.29060962,112920.0,112910.0,0.16254208]
[1760158544523,1.29060962,112920.0,112910.0,0.13120919]
[1760158544823,1.29060962,112920.0,112910.0,0.16255689]
[1760158545227,1.29060962,112920.0,112910.0,0.20993644]
[1760158545425,1.29060962,112920.0,112910.0,0.16255689]
[1760158545621,1.29060962,112920.0,112910.0,0.20993644]
[1760158546025,0.84137542,112920.0,112910.0,0.29837844]
[1760158546220,0.84137542,112920.0,112910.0,0.26703074]
[1760158546423,0.92980962,112920.0,112910.0,0.17858874]
[1760158547630,1.29060962,112920.0,112910.0,0.17858874]
[1760158548129,1.29060962,112920.0,112910.0,0.20998463]
[1760158548331,1.29060962,112920.0,112910.0,0.17858874]
[1760158549030,0.84137542,112920.0,112910.0,0.17858874]
[1760158549234,0.84137542,112920.0,112910.0,0.26703074]
[1760158549528,0.92980962,112920.0,112910.0,0.17858874]
[1760158549931,1.29060962,112920.0,112910.0,0.13120919]
[1760158550628,1.43780962,112920.0,112910.0,0.13120919]
[1760158550830,1.29060962,112920.0,112910.0,0.13120919]
[1760158551932,1.29060962,112920.0,112910.0,0.17858874]
[1760158553433,0.84137542,112920.0,112910.0,0.26703074]
[1760158553630,0.44137542,112920.0,112910.0,0.26703074]
[1760158554527,0.89060962,112920.0,112910.0,0.17858874]
[1760158554726,0.89060962,112920.0,112910.0,0.15481153]
[1760158555126,0.89060962,112920.0,112910.0,0.24325353]
[1760158555528,0.52980962,112920.0,112910.0,0.24325353]
[1760158556137,0.44137542,112920.0,112910.0,0.24325353]
[1760158557141,0.42822542,112920.0,112910.0,1.04659098]
[1760158558233,0.40718542,112920.0,112910.0,1.04659098]
[1760158559137,0.40718542,112920.0,112910.0,1.07017776]
[1760158559435,0.40718542,112920.0,112910.0,1.04659098]
[1760158560038,0.1244917,112940.0,112930.0,0.0884264]
[1760158560238,0.53167712,112940.0,112930.0,0.0884264]
[1760158560737,0.53167712,112940.0,112930.0,0.08963559]
[1760158560939,0.43010542,112940.0,112930.0,0.14789738]
[1760158561239,0.43110542,112940.0,112930.0,0.12430559]
[1760158561941,0.43110542,112940.0,112930.0,0.11065559]
[1760158562239,0.69520542,112940.0,112930.0,0.13424738]
[1760158562739,0.70835542,112940.0,112930.0,0.13424738]
[1760158563140,0.69520542,112940.0,112930.0,0.14789738]
[1760158564340,0.28802,112940.0,112930.0,0.90869738]
[1760158564546,0.43010542,112950.0,112940.0,0.1230885]
[1760158564747,0.43010542,112950.0,112940.0,0.63871285]
[1760158566847,0.38372,112960.0,112950.0,0.1230807]
[1760158567044,0.79090542,112960.0,112950.0,0.1230807]
[1760158567248,0.87930832,112960.0,112950.0,0.1230807]
[1760158567549,0.79090542,112960.0,112950.0,0.1330807]
[1760158567743,0.79090542,112960.0,112950.0,0.13428989]
[1760158568150,0.79190542,112960.0,112950.0,0.13428989]
[1760158568847,0.79090542,112960.0,112950.0,0.12428989]
[1760158569543,0.79865542,112960.0,112950.0,0.08961989]
[1760158569743,1.28706652,112960.0,112950.0,0.00120919]
[1760158570043,0.1015852,112930.0,112920.0,0.05508495]
[1760158570244,0.89249062,112930.0,112920.0,0.02361516]
[1760158570444,1.65329062,112930.0,112920.0,0.02361516]
[1760158571445,1.65329062,112930.0,112910.0,0.02361516]
[1760158571446,0.03067,112920.0,112910.0,0.02361516]
[1760158571748,0.79865542,112920.0,112910.0,0.02361516]
[1760158571949,0.43785542,112920.0,112910.0,0.11206596]
[1760158572348,0.79865542,112920.0,112910.0,0.11206596]
[1760158573249,0.79865542,112920.0,112910.0,0.02361516]
[1760158573744,0.79865542,112920.0,112910.0,0.11206596]
[1760158573945,1.69428384,112920.0,112910.0,0.02361516]
[1760158574144,0.1113708,112910.0,112900.0,0.02371952]
[1760158574344,1.28654164,112910.0,112900.0,0.02371952]
[1760158574850,1.28654164,112910.0,112900.0,7.682e-05]
[1760158575644,1.68654164,112910.0,112900.0,7.682e-05]
[1760158575851,1.68654164,112910.0,112870.0,0.03146979]
[1760158575852,0.1113944,112880.0,112870.0,0.03146979]
[1760158576045,0.87937982,112880.0,112870.0,0.03146979]
[1760158576242,0.87937982,112880.0,112860.0,0.18098514]
[1760158576441,0.79090542,112870.0,112860.0,0.18098514]
[1760158576650,0.79090542,112870.0,112860.0,0.16733934]
[1760158576852,0.79871955,112870.0,112860.0,0.07884934]
[1760158577052,0.79871955,112870.0,112860.0,0.03146979]
[1760158577449,0.79871955,112870.0,112850.0,0.0884943]
[1760158577647,0.79110542,112860.0,112850.0,0.2084943]
[1760158577852,0.42930542,112860.0,112850.0,0.2442343]
[1760158578145,0.79010542,112860.0,112850.0,0.2442343]
[1760158578351,0.42930542,112860.0,112850.0,0.6050343]
[1760158578949,0.42930542,112860.0,112850.0,1.0050343]
[1760158579150,0.40618542,112860.0,112850.0,1.0050343]
[1760158580150,0.43036955,112870.0,112860.0,0.1242301]
[1760158580345,0.43036955,112870.0,112860.0,0.6050301]
[1760158580551,6.413e-05,112870.0,112860.0,1.0050301]
[1760158580954,6.413e-05,112870.0,112860.0,1.03649989]
[1760158582248,0.40724955,112870.0,112860.0,0.27569989]
[1760158582449,0.43036955,112870.0,112860.0,0.27569989]
[1760158582656,0.40724955,112870.0,112860.0,1.03649989]
[1760158582852,6.413e-05,112870.0,112860.0,1.03649989]
[1760158584553,0.40724955,112870.0,112860.0,1.03649989]
[1760158585756,6.413e-05,112870.0,112860.0,1.03649989]
[1760158586353,0.40724955,112870.0,112860.0,1.03649989]
[1760158588660,0.43036955,112870.0,112860.0,0.6050301]
[1760158591557,0.02318413,112870.0,112860.0,0.6050301]
[1760158591761,0.02318413,112870.0,112860.0,0.2442301]
[1760158592366,0.88021633,112870.0,112860.0,0.0984901]
[1760158592571,0.02213,112860.0,112850.0,0.0884928]
[1760158592759,0.38300682,112860.0,112850.0,0.1184928]
[1760158592961,0.73026335,112860.0,112850.0,0.1184928]
[1760158594068,0.73026335,112860.0,112850.0,0.1321128]
[1760158594366,0.36946335,112860.0,112850.0,0.1321128]
[1760158594768,0.36946335,112860.0,112850.0,0.1537528]
[1760158594964,0.36946335,112860.0,112850.0,0.5145528]
[1760158595173,7.682e-05,112860.0,112850.0,0.5145528]
[1760158595470,7.682e-05,112860.0,112850.0,0.9145528]
[1760158595769,7.682e-05,112860.0,112850.0,0.5537528]
[1760158595770,0.02220682,112860.0,112850.0,0.5537528]
[1760158595969,0.02220682,112860.0,112850.0,0.9145528]
[1760158597764,0.02220682,112860.0,112850.0,0.5537528]
[1760158598871,0.02220682,112860.0,112850.0,0.9145528]
[1760158599264,0.02220682,112860.0,112850.0,0.5537528]
[1760158599962,0.02220682,112860.0,112850.0,0.9145528]
[1760158600563,0.02220682,112860.0,112850.0,0.5537528]
[1760158600869,0.02220682,112860.0,112850.0,0.9145528]
[1760158601270,0.02220682,112860.0,112850.0,0.94602259]
[1760158601471,0.11069682,112860.0,112850.0,0.1184928]
[1760158601667,0.87149682,112860.0,112850.0,0.03]
[1760158602068,0.1197778,112850.0,112840.0,0.11997139]
[1760158602271,0.82783433,112850.0,112840.0,0.1185016]
[1760158602465,1.22791115,112850.0,112840.0,0.0885057]
[1760158602770,0.82791115,112850.0,112840.0,0.0885057]
[1760158602966,0.73941335,112850.0,112840.0,0.0885057]
[1760158603164,0.1106357,112840.0,112830.0,0.03146979]
[1760158603364,0.47151252,112840.0,112820.0,0.13360669]
[1760158603569,0.82645003,112830.0,112820.0,0.13999119]
[1760158603770,0.36946335,112830.0,112820.0,0.17525119]
[1760158603968,0.36946335,112830.0,112820.0,0.53605119]
[1760158604366,0.34733335,112830.0,112820.0,0.93605119]
[1760158604572,0.38293,112860.0,112850.0,0.1237578]
[1760158604772,0.73018653,112860.0,112850.0,0.1237578]
[1760158605669,0.36938653,112860.0,112850.0,0.1237578]
[1760158606170,0.73018653,112860.0,112850.0,0.1237578]
[1760158606366,0.02213,112880.0,112870.0,0.03526]
[1760158606570,0.36938653,112880.0,112870.0,0.1237422]
[1760158606772,0.73018653,112880.0,112870.0,0.1237422]
[1760158607574,0.36938653,112880.0,112870.0,0.1237422]
[1760158608474,0.37038653,112880.0,112870.0,0.1237422]
[1760158608673,0.34825653,112880.0,112870.0,0.8945422]
[1760158608872,0.001,112880.0,112870.0,0.8945422]
[1760158609777,0.05290557,112900.0,112890.0,0.03595]
[1760158610078,0.05290557,112900.0,112890.0,0.50675]
[1760158610679,0.03180557,112900.0,112890.0,0.9952165]
[1760158610978,0.36879653,112910.0,112900.0,0.1241687]
[1760158611279,0.36879653,112910.0,112900.0,0.2541687]
[1760158611280,0.34725653,112910.0,112900.0,0.2541687]
[1760158612378,0.34825653,112910.0,112900.0,0.2541687]
[1760158612778,0.001,112910.0,112900.0,0.2541687]
[1760158612974,0.0884586,112900.0,112890.0,0.0315517]
[1760158613174,0.0884665,112890.0,112880.0,0.01294]
[1760158613380,0.4492665,112890.0,112880.0,0.01294]
[1760158613580,0.8492665,112890.0,112880.0,0.01294]
[1760158615282,0.86914247,112890.0,112880.0,0.01294]
[1760158617181,0.90094804,112890.0,112880.0,0.01294]
[1760158618182,0.90194804,112890.0,112880.0,0.01294]
[1760158620486,0.0884742,112880.0,112870.0,0.01294]
[1760158620686,0.8164067,112880.0,112870.0,0.01294]
[1760158620887,1.2164067,112880.0,112870.0,0.01294]
[1760158622783,0.8164067,112880.0,112870.0,0.01294]
[1760158623489,0.3671325,112880.0,112870.0,0.1241921]
[1760158623686,0.3671325,112880.0,112870.0,0.5341921]
[1760158623987,0.34725653,112900.0,112890.0,0.1241764]
[1760158624186,0.34725653,112900.0,112890.0,0.1441764]
[1760158624187,0.36746358,112900.0,112890.0,0.1441764]
[1760158624382,0.72826358,112900.0,112890.0,0.1441764]
[1760158624582,0.36746358,112900.0,112890.0,0.1441764]
[1760158624782,0.72826358,112900.0,112890.0,0.1441764]